{"text_format":"3","workbook":"xlsx","n_sheets":2,"sheets":["НАЧАЛО","СРЕДСТВО СОСТАВЛЕНИЯ БЮДЖЕТА"],"not_rendered":{"defined_names":2},"read":"whole","date_system":"1900"}

{"sheet":"НАЧАЛО","index":0,"n_rows":7,"n_cols":2,"rows_kept":7}
[null,"ОБ ЭТОМ ШАБЛОНЕ"]
[null,"Следите за первоначальными капиталовложениями в веб-сайт, экономическим эффектом и затратами на него с помощью средства составления бюджета веб-сайта."]
[null,"Введите название компании и дату."]
[null,"Укажите сведения в таблицах для расчета итоговых сумм и показателей оценки."]
[null,"Примечание  "]
[null,"В столбце A листа СРЕДСТВО СОСТАВЛЕНИЯ БЮДЖЕТА содержатся дополнительные инструкции. Их текст намерено скрыт. Чтобы удалить этот текст, выделите столбец A и нажмите клавишу DELETE. Чтобы отобразить текст, выделите столбец A и измените цвет шрифта."]
[null,"Чтобы получить дополнительные сведения о таблице на листе, щелкните в ней ячейку, нажмите клавиши SHIFT+F10 и выберите пункт «Таблица», а затем — «Замещающий текст»."]

{"sheet":"СРЕДСТВО СОСТАВЛЕНИЯ БЮДЖЕТА","index":1,"n_rows":43,"n_cols":6,"rows_kept":43,"merged":[[14,1,14,5],[22,1,22,5],[30,1,30,5],[38,1,38,5]]}
["Создайте на этом листе бюджет веб-сайта. В ячейках этого столбца содержатся полезные инструкции о том, как использовать этот лист. Нажмите клавишу СТРЕЛКА ВНИЗ, чтобы начать."]
["Введите название компании в ячейке справа.","Название компании"]
["Ячейка справа содержит название листа.","Средство составления бюджета-сайта"]
["Введите дату в ячейке справа.","Дата"]
["Совет представлен в ячейке справа.","В серых ячейках представлены результаты расчетов, которые не следует изменять."]
["Введите сведения в таблице «Коэффициент», начиная с ячейки справа. Дальнейшие инструкции указаны в ячейке A10.","Данные компании","Коэффициент"]
[null,"Требуемая норма доходности",{"v":0.1,"d":"10%"}]
[null,"Ставка налога",{"v":0.3,"d":"30%"}]
[]
["Введите сведения в таблице «Первоначальные капиталовложения», начиная с ячейки справа. Дальнейшие инструкции указаны в ячейке A16.","Первоначальные капиталовложения в веб-сайт","ГОД","1","2","3"]
[null,"Оборудование (например, серверы)",{"v":25000,"d":"25,000.00 ₽"}]
[null,"Программное обеспечение (например, для онлайн-каталога товаров)",{"v":15000,"d":"15,000.00 ₽"}]
[null,"Разработка (например, проектирование и разработка сайта сторонней компанией)",{"v":150000,"d":"150,000.00 ₽"}]
[null,"Общие первоначальные капиталовложения",{"$f":"SUBTOTAL(109,ПервоначальныеКапиталовложения[ГОД])","v":{"v":190000,"d":"190,000.00 ₽"}}]
[]
["Введите сведения в таблице «Экономический эффект», начиная с ячейки справа. Дальнейшие инструкции указаны в ячейке A24.","Экономический эффект от веб-сайта","ГОД","1","2","3"]
[null,"Прямые продажи",null,{"v":15000,"d":"15,000.00 ₽"},{"v":50000,"d":"50,000.00 ₽"},{"v":75000,"d":"75,000.00 ₽"}]
[null,"Увеличение продаж в результате повышения эффективности продавцов или рекламных кампаний",null,{"v":25000,"d":"25,000.00 ₽"},{"v":25000,"d":"25,000.00 ₽"},{"v":25000,"d":"25,000.00 ₽"}]
[null,"Увеличение продаж в результате более активного участия партнеров",null,{"v":25000,"d":"25,000.00 ₽"},{"v":25000,"d":"25,000.00 ₽"},{"v":25000,"d":"25,000.00 ₽"}]
[null,"Уменьшение командировочных расходов",null,{"v":25000,"d":"25,000.00 ₽"},{"v":25000,"d":"25,000.00 ₽"},{"v":25000,"d":"25,000.00 ₽"}]
[null,"Уменьшение расходов на обслуживание клиентов",null,{"v":50000,"d":"50,000.00 ₽"},{"v":50000,"d":"50,000.00 ₽"},{"v":50000,"d":"50,000.00 ₽"}]
[null,"Общий экономический эффект",null,{"$f":"SUBTOTAL(109,ЭкономическийЭффект[1])","v":{"v":140000,"d":"140,000.00 ₽"}},{"$f":"SUBTOTAL(109,ЭкономическийЭффект[2])","v":{"v":175000,"d":"175,000.00 ₽"}},{"$f":"SUBTOTAL(109,ЭкономическийЭффект[3])","v":{"v":200000,"d":"200,000.00 ₽"}}]
[]
["Введите сведения в таблице «Затраты», начиная с ячейки справа. В ячейках с формулами значения рассчитываются автоматически. Дальнейшие инструкции указаны в ячейке A32.","Затраты (кроме первоначальных капиталовложений)","ГОД","1","2","3"]
[null,"Себестоимость продаж",null,{"v":7500,"d":"7,500.00 ₽"},{"v":25000,"d":"25,000.00 ₽"},{"v":37500,"d":"37,500.00 ₽"}]
[null,"Обслуживание",null,{"v":15000,"d":"15,000.00 ₽"},{"v":15000,"d":"15,000.00 ₽"},{"v":15000,"d":"15,000.00 ₽"}]
[null,"Управление проектами, поддержка клиентов",null,{"v":35000,"d":"35,000.00 ₽"},{"v":35000,"d":"35,000.00 ₽"},{"v":35000,"d":"35,000.00 ₽"}]
[null,"Реклама в Интернете, регистрация в поисковых системах",null,{"v":10000,"d":"10,000.00 ₽"},{"v":10000,"d":"10,000.00 ₽"},{"v":10000,"d":"10,000.00 ₽"}]
[null,"Амортизация капиталовложений (расчеты для трехлетнего периода)",null,{"$f":"ПервоначальныеКапиталовложения[[#Totals],[ГОД]]/3","v":{"v":63333.333333333336,"d":"63,333.33 ₽"}},{"$f":"ПервоначальныеКапиталовложения[[#Totals],[ГОД]]/3","v":{"v":63333.333333333336,"d":"63,333.33 ₽"}},{"$f":"ПервоначальныеКапиталовложения[[#Totals],[ГОД]]/3","v":{"v":63333.333333333336,"d":"63,333.33 ₽"}}]
[null,"Общие затраты",null,{"$f":"SUBTOTAL(109,Затраты[1])","v":{"v":130833.33333333334,"d":"130,833.33 ₽"}},{"$f":"SUBTOTAL(109,Затраты[2])","v":{"v":148333.33333333334,"d":"148,333.33 ₽"}},{"$f":"SUBTOTAL(109,Затраты[3])","v":{"v":160833.33333333334,"d":"160,833.33 ₽"}}]
[]
["Значения автоматически рассчитываются в таблице «Итоги», начиная с ячейки справа. Дальнейшие инструкции указаны в ячейке A40.","Итоги","ГОД","1","2","3"]
[null,"Экономический эффект (затраты)",null,{"$f":"ЭкономическийЭффект[[#Totals],[1]]-Затраты[[#Totals],[1]]","v":{"v":9166.666666666657,"d":"9,166.67 ₽"}},{"$f":"ЭкономическийЭффект[[#Totals],[2]]-Затраты[[#Totals],[2]]","v":{"v":26666.666666666657,"d":"26,666.67 ₽"}},{"$f":"ЭкономическийЭффект[[#Totals],[3]]-Затраты[[#Totals],[3]]","v":{"v":39166.66666666666,"d":"39,166.67 ₽"}}]
[null,"Налог",null,{"$f":"D33*СтавкаНалога","v":{"v":2749.999999999997,"d":"2,750.00 ₽"}},{"$f":"E33*СтавкаНалога","v":{"v":7999.999999999996,"d":"8,000.00 ₽"}},{"$f":"F33*СтавкаНалога","v":{"v":11749.999999999996,"d":"11,750.00 ₽"}}]
[null,"Сумма после вычета налогов",null,{"$f":"D33-D34","v":{"v":6416.666666666661,"d":"6,416.67 ₽"}},{"v":18666.66666666666,"d":"18,666.67 ₽"},{"v":27416.66666666666,"d":"27,416.67 ₽"}]
[null,"Восстановление амортизации",null,{"$f":"D29","v":{"v":63333.333333333336,"d":"63,333.33 ₽"}},{"$f":"E29","v":{"v":63333.333333333336,"d":"63,333.33 ₽"}},{"$f":"F29","v":{"v":63333.333333333336,"d":"63,333.33 ₽"}}]
[null,"Движение денежных средств",{"$f":"-ПервоначальныеКапиталовложения[[#Totals],[ГОД]]","v":{"v":-190000,"d":"-190,000.00 ₽"}},{"$f":"D35+D36","v":{"v":69750,"d":"69,750.00 ₽"}},{"v":82000,"d":"82,000.00 ₽"},{"v":90750,"d":"90,750.00 ₽"}]
[null,"Накопленное движение денежных средств",{"$f":"C37","v":{"v":-190000,"d":"-190,000.00 ₽"}},{"$f":"C38+D37","v":{"v":-120250,"d":"-120,250.00 ₽"}},{"v":-38250,"d":"-38,250.00 ₽"},{"v":52500,"d":"52,500.00 ₽"}]
[]
["Показатели оценки автоматически рассчитываются в таблице «Показатели», начиная с ячейки справа.","Показатели оценки","Значения"]
[null,"Чистая приведенная стоимость (ЧПС)",{"$f":"C37+(NPV(ТНД,D37:F37))","v":{"v":9359.504132231377,"d":"9,359.50 ₽"}}]
[null,"Внутренняя норма доходности (ВНД)",{"$f":"IRR(C37:F37)","v":{"v":0.12655165144706393,"d":"12.66%"}}]
[null,"Срок окупаемости (в годах)",{"$f":"IF(F38<=0,\"Более 3 лет\",IF(E38<=0,(F37-F38)/F37+2,IF(D38<=0,(E37-E38)/E37+1,IF(C38<=0,(D37-D38)/D37,\"Н/Д\"))))","v":{"v":2.4214876033057853,"d":"2.42"}}]